fUST/lending_fUST_20241123
["ID","MTS","AMOUNT","RATE_DAILY","PERIOD"]
[343028232,1732295435551,-273.4,0.00025,2]
[343028233,1732295435561,-273.4,0.00025,2]
[343028234,1732295435571,-273.4,0.00025,2]
[343028235,1732295435580,-273.399999,0.00025,2]
[343028236,1732295435591,-500.0,0.00025,2]
[343028237,1732295435600,-500.0,0.00025,2]
[343028238,1732295435610,-393831.18282161,0.00025,2]
[343028239,1732295435619,-303.27292137,0.00025,2]
[343028240,1732295435628,-397.256155,0.00025,7]
[343028241,1732295435639,-397.256155,0.00025,7]
[343028242,1732295435648,-397.256155,0.00025,7]
[343028243,1732295435661,-397.256155,0.00025,7]
[343028244,1732295435671,-899.804941,0.00025,7]
[343028245,1732295435680,-899.804941,0.00025,7]
[343028246,1732295435690,-899.804941,0.00025,7]
[343028247,1732295435701,-899.804941,0.00025,7]
[343028248,1732295435710,-303.24257283,0.00025,2]
[343028249,1732295435720,-500.0,0.00025,17]
[343028250,1732295435730,-52542.38150083,0.00025,10]
[343028251,1732295435740,-151.0,0.00025,7]
[343028252,1732295435749,-151.0,0.00025,7]
[343028253,1732295435760,-1005.0,0.00025059,2]
[343028254,1732295435770,-33150.93385205,0.0002509,2]
[343028298,1732295438658,-160.0,0.0002,2]
[343028300,1732295438670,-617.15283752,0.0002509,2]
[343028318,1732295438867,-616.81459068,0.0002509,2]
[343028319,1732295438928,-20440.0965,0.0002509,2]
[343028457,1732295440385,-2943.65908037,0.00019078,2]
[343028458,1732295440396,-2369.24601706,0.0002509,2]
[343028460,1732295440409,-171294.22128193,0.0002509,2]
[343028466,1732295440458,-982.415,0.0002509,2]
[343028756,1732295443597,-87595.4001881,0.0002509,2]
[343028758,1732295443608,-899.804941,0.0002509,7]
[343028760,1732295443619,-899.804941,0.0002509,7]
[343028762,1732295443632,-151.0,0.0002509,7]
[343028764,1732295443643,-1000.89847719,0.000251,5]
[343028766,1732295443653,-500.0,0.0002511,2]
[343028767,1732295443663,-303.27292137,0.0002525,2]
[343028769,1732295443678,-303.24257283,0.0002525,2]
[343028771,1732295443690,-462.0,0.00025373,2]
[343028773,1732295443700,-953.94288897,0.00025384,2]
[343028775,1732295443710,-900.0,0.00025469,3]
[343028777,1732295443719,-303.27292137,0.000255,2]
[343028778,1732295443729,-303.24257283,0.000255,2]
[343028780,1732295443739,-995.0,0.00025544,2]
[343028782,1732295443748,-39500.7,0.0002569,10]
[343028784,1732295443757,-10157.8,0.000257,14]
[343028786,1732295443767,-300.0,0.000257,2]
[343028787,1732295443776,-300.0,0.000257,2]
[343028789,1732295443785,-300.0,0.000257,2]
[343028791,1732295443795,-303.27292137,0.0002575,2]
[343028793,1732295443805,-303.24257283,0.0002575,2]
[343028795,1732295443815,-41568.49,0.000258,2]
[343028797,1732295443825,-1000.0,0.00025826,2]
[343028798,1732295443834,-300.0,0.000259,2]
[343028800,1732295443844,-700.0,0.00025999,7]
[343028802,1732295443854,-159.0,0.00026,2]
[343028804,1732295443863,-4188.38087666,0.00026,7]
[343028806,1732295443873,-7842.6915285,0.00026,3]
[343028808,1732295443882,-303.27292137,0.00026,2]
[343028810,1732295443892,-303.24257283,0.00026,2]
[343028811,1732295443903,-500.0,0.00026,20]
[343028813,1732295443913,-3000.0,0.00026099,2]
[343028815,1732295443924,-627.86666024,0.00026101,2]
[343028817,1732295443934,-1000.0,0.00026136,2]
[343028819,1732295443944,-454.90938205,0.0002625,4]
[343028821,1732295443953,-454.86385925,0.0002625,4]
[343028823,1732295443963,-899.804941,0.00026301,7]
[343028824,1732295443973,-899.804941,0.00026301,7]
[343028826,1732295443983,-151.0,0.00026301,7]
[343028828,1732295443993,-1000.0,0.00026301,2]
[343028830,1732295444004,-1000.0,0.00026301,2]
[343028831,1732295444014,-1000.0,0.00026301,2]
[343028833,1732295444024,-1000.0,0.00026301,2]
[343028835,1732295444034,-1000.0,0.00026301,2]
[343028837,1732295444043,-1000.0,0.00026301,2]
[343028838,1732295444053,-755.03136023,0.00026301,2]
[343028839,1732295444063,-660.0,0.00026384,2]
[343028840,1732295444072,-160.0,0.00026406,3]
[343028841,1732295444081,-456.1639329,0.00026411,2]
[343028842,1732295444090,-1000.0,0.00026477,2]
[343028843,1732295444099,-454.90938205,0.000265,4]
[343028844,1732295444109,-327.99898526,0.000265,4]
[343028845,1732295444169,-126.86487399,0.000265,4]
[343028846,1732295444179,-10157.8,0.000266,14]
[343028847,1732295444190,-300.0,0.000267,2]
[343028849,1732295444201,-300.0,0.000267,2]
[343028851,1732295444212,-300.0,0.000267,2]
[343028853,1732295444222,-160.0,0.00026737,4]
[343028855,1732295444233,-454.90938205,0.0002675,4]
[343028857,1732295444243,-454.86385925,0.0002675,4]
[343028859,1732295444253,-315.24881543,0.00026792,2]
[343028862,1732295444264,-151.72924,0.000268,2]
[343028864,1732295444274,-41568.49,0.000268,2]
[343028866,1732295444284,-300.0,0.000269,2]
[343028868,1732295444293,-400.0,0.00026921,2]
[343028869,1732295444303,-454.90938205,0.00027,4]
[343028872,1732295444313,-454.86385925,0.00027,4]
[343028873,1732295444323,-500.0,0.00027,23]
[343028876,1732295444336,-871.471403,0.00027035,2]
[343028878,1732295444346,-458.0,0.00027064,2]
[343028880,1732295444356,-160.0,0.00027067,5]
[343028882,1732295444369,-1000.0,0.00027136,2]
[343028884,1732295444379,-285.8906368,0.00027233,2]
[343028886,1732295444390,-454.90938205,0.0002725,4]
[343028888,1732295444399,-454.86385925,0.0002725,4]
[343028890,1732295444409,-1144.25923367,0.000273,2]
[343028892,1732295444422,-600.0,0.00027397,2]
[343028894,1732295444432,-600.0,0.00027397,2]
[343028895,1732295444442,-600.0,0.00027397,2]
[343028898,1732295444451,-600.0,0.00027397,2]
[343028899,1732295444461,-600.0,0.00027397,2]
[343028901,1732295444470,-652.94157916,0.00027397,2]
[343028904,1732295444480,-567.35,0.00027397,2]
[343028905,1732295444490,-500.0,0.00027397,2]
[343028908,1732295444499,-400.0,0.00027397,60]
[343028910,1732295444508,-151.0,0.00027397,7]
[343028911,1732295444519,-151.0,0.00027397,7]
[343028914,1732295444528,-151.0,0.00027397,7]
[343028916,1732295444538,-151.0,0.00027397,7]
[343028918,1732295444547,-151.0,0.00027397,7]
[343028919,1732295444557,-160.815348,0.00027397,7]
[343028921,1732295444566,-256.96881998,0.00027397,2]
[343028923,1732295444576,-160.0,0.00027398,6]
[343028926,1732295444586,-998.13044909,0.000275,2]
[343028928,1732295444595,-500.0,0.00027671,2]
[343028930,1732295444604,-300.0,0.000277,2]
[343028932,1732295444614,-300.0,0.000277,2]
[343028933,1732295444623,-300.0,0.000277,2]
[343028936,1732295444633,-160.0,0.00027729,7]
[343028938,1732295444642,-315.24881543,0.00027763,2]
[343028940,1732295444652,-41568.49,0.000278,2]
[343028942,1732295444661,-397.256155,0.000278,7]
[343028944,1732295444673,-899.804941,0.000278,7]
[343028946,1732295444683,-899.804941,0.000278,7]
[343028948,1732295444694,-250.687632,0.000278,7]
[343028950,1732295444704,-1000.0,0.00027871,2]
[343028952,1732295444713,-330.0,0.0002789,2]
[343028954,1732295444723,-300.0,0.000279,2]
[343028956,1732295444734,-500.0,0.00027945,2]
[343028957,1732295444744,-1168.24626798,0.0002799,7]
[343028960,1732295444754,-250.0,0.00028,5]
[343028962,1732295444764,-8000.0,0.00028,8]
[343028964,1732295444775,-26082.01008958,0.00028,30]
[343029146,1732295446582,-500.0,0.00019899,2]
[343029148,1732295446592,-214.02809956,0.00019899,2]
[343029150,1732295446602,-597.19405713,0.00019899,2]
[343029152,1732295446612,-1097.57784331,0.00020407,2]
[343029154,1732295446623,-747.89774787,0.00020407,2]
[343029157,1732295446635,-4721.5623348,0.00020407,2]
[343029159,1732295446645,-1421.16376994,0.00020457,2]
[343030844,1732296206158,-400.0,0.00013833,2]
[343030845,1732296206187,-400.0,0.00013973,2]
[343031114,1732296638927,-5000.0,0.00017295,2]
[343031115,1732296638938,-172.135064,0.0001747,2]
[343031116,1732296638947,-888.570634,0.0001747,2]
[343031118,1732296638957,-888.570634,0.00017688,2]
[343031120,1732296638966,-888.570634,0.00017907,2]
[343031122,1732296638977,-888.570634,0.00018125,2]
[343031124,1732296638990,-300.0,0.00018343,2]
[343031126,1732296638999,-172.135064,0.00018344,2]
[343031128,1732296639008,-888.570634,0.00018344,2]
[343031130,1732296639017,-125.156702,0.00019042,2]
[343031144,1732296639183,-404.843298,0.00019042,2]
[343031145,1732296639193,-166.973181,0.00019178,2]
[343031146,1732296639203,-11209.34068157,0.000192,2]
[343031147,1732296639212,-1000.0,0.000197,2]
[343031148,1732296639224,-491.27552853,0.000197,2]
[343031149,1732296639233,-152.0,0.00019786,2]
[343031150,1732296639243,-236.21774928,0.00019799,2]
[343031151,1732296639252,-442.26077236,0.00019799,2]
[343031153,1732296639262,-176.55396433,0.00019799,2]
[343031155,1732296639272,-297.35693498,0.000198,2]
[343031156,1732296639281,-14722.82239134,0.000198,2]
[343031216,1732296640523,-142400.75130441,0.000198,2]
[343031231,1732296640676,-92876.42630425,0.000198,2]
[343031232,1732296640686,-2398.05622409,0.000199,2]
[343031234,1732296640696,-500.0,0.00019973,2]
[343031236,1732296640705,-21966.16288068,0.0001999,2]
[343031238,1732296640717,-31172.66914095,0.0001999,2]
[343031240,1732296640730,-238.54382192,0.00019999,2]
[343031241,1732296640742,-239.59441066,0.00019999,2]
[343031242,1732296640752,-204.52786349,0.00019999,2]
[343031243,1732296640761,-259.56487962,0.00019999,2]
[343031244,1732296640772,-160.0,0.0002,2]
[343031245,1732296640781,-500.0,0.0002,7]
[343031246,1732296640790,-500.0,0.0002,2]
[343031247,1732296640800,-500.0,0.0002,2]
[343031248,1732296640809,-2380.0,0.0002,2]
[343031249,1732296640819,-2376.0,0.0002,2]
[343031250,1732296640828,-2376.0,0.0002,2]
[343031251,1732296640837,-2376.0,0.0002,2]
[343031252,1732296640847,-48779.0,0.0002,2]
[343031253,1732296640856,-2376.0,0.0002,2]
[343031254,1732296640865,-2376.0,0.0002,2]
[343031255,1732296640874,-400.0,0.00020447,2]
[343031256,1732296640883,-1000.0,0.00020521,2]
[343031257,1732296640893,-2822.01,0.00021,2]
[343031258,1732296640902,-2398.05622406,0.0002115,2]
[343031259,1732296640911,-223.351,0.0002137,2]
[343031260,1732296640921,-1500.0,0.00021522,2]
[343031261,1732296640930,-491.27552849,0.0002175,2]
[343031262,1732296640940,-2398.05622406,0.00022399,2]
[343031263,1732296640950,-200.0,0.0002266,8]
[343031264,1732296640960,-2000.0,0.0002282,2]
[343031265,1732296640970,-258.62769824,0.00023527,2]
[343031266,1732296640982,-2398.05622406,0.00023649,2]
[343031267,1732296640991,-491.27552849,0.000238,2]
[343031268,1732296641001,-2500.0,0.00024356,2]
[343031269,1732296641010,-951.7481904,0.00024658,4]
[343031270,1732296641020,-200.0,0.00024658,15]
[343031271,1732296641030,-380.0,0.00024658,2]
[343031272,1732296641039,-234.58826896,0.00024658,2]
[343031273,1732296641048,-2398.05622406,0.00024899,2]
[343031274,1732296641058,-239.24407106,0.000249,2]
[343031275,1732296641068,-300.0,0.00025,2]
[343031276,1732296641083,-300.0,0.00025,2]
[343031277,1732296641099,-273.4,0.00025,2]
[343031278,1732296641108,-112.55731191,0.00025,2]
[343031279,1732296641120,-187.44268809,0.00025,2]
[343031280,1732296641130,-300.0,0.00025,2]
[343031281,1732296641139,-273.399999,0.00025,2]
[343031282,1732296641150,-1551.29295167,0.00025,2]
[343031321,1732296643739,-266.39026829,0.00019799,2]
[343031323,1732296643749,-212.42790628,0.00019799,2]
[343031325,1732296643758,-603.20279292,0.00025,2]
[343031484,1732296646726,-160.0,0.0002,2]
[343031486,1732296646742,-1080.64450779,0.00025,2]
[343031487,1732296646810,-15295.55418224,0.00025,2]
[343031488,1732296646823,-500.0,0.00025,17]
[343031489,1732296646832,-303.21223037,0.00025,2]
[343031490,1732296646841,-303.21223037,0.00025,2]
[343031491,1732296646851,-303.21223037,0.0002525,2]
[343031492,1732296646860,-303.21223037,0.0002525,2]
[343031494,1732296646869,-303.21223037,0.000255,2]
[343031496,1732296646879,-303.21223037,0.000255,2]
[343031498,1732296646889,-420.4,0.000257,2]
[343031499,1732296646898,-300.0,0.000257,2]
[343031500,1732296646907,-303.21223037,0.0002575,2]
[343031501,1732296646917,-303.21223037,0.0002575,2]
[343031502,1732296646926,-491.27552849,0.0002585,2]
[343031503,1732296646935,-300.0,0.000259,2]
[343031504,1732296646945,-500.0,0.00026,20]
[343031505,1732296646954,-303.21223037,0.00026,2]
[343031506,1732296646964,-303.21223037,0.00026,2]
[343031507,1732296646973,-3000.0,0.00026099,2]
[343031508,1732296646986,-2398.05622406,0.00026149,2]
[343031509,1732296646995,-454.81834555,0.0002625,4]
[343031510,1732296647004,-254.02583035,0.0002625,4]
[343031511,1732296647014,-660.0,0.00026384,2]
[343031512,1732296647022,-454.81834555,0.000265,4]
[343031513,1732296647031,-160.0,0.00026526,3]
[343031514,1732296647041,-300.0,0.000267,2]
[343031515,1732296647050,-300.0,0.000267,2]
[343031516,1732296647060,-454.81834555,0.0002675,4]
[343031517,1732296647069,-300.0,0.000269,2]
[343031518,1732296647078,-8057.92751046,0.000269,2]
[343031522,1732296798873,400.0,0.00013973,2]
[343031526,1732297234864,200.0,0.00027,120]
[343031527,1732297235408,200.0,0.000276,120]
[343031528,1732297235573,200.0,0.000282,120]
[343031529,1732297235884,260.19084,0.000288,120]
[343031530,1732297285739,303.4,0.00029615,120]
[343031534,1732297485322,1307.3838657,0.00029041,120]
[343031547,1732297527194,400.0,0.00013973,2]
[343031630,1732297831784,-355.5,0.00017782,2]
[343031631,1732297831892,-2081.22307292,0.00017782,2]
[343031632,1732297831904,-494.5,0.00017782,2]
[343031633,1732297831915,-1527.22438011,0.00017782,2]
[343031635,1732297831927,-541.55254697,0.00017782,2]
[343031636,1732297831935,-195.491788,0.00017962,2]
[343031638,1732297831945,-207.74892842,0.00018001,2]
[343031639,1732297831955,-4563.3752742,0.00018101,2]
[343031640,1732297831965,-300.0,0.00018238,2]
[343031641,1732297831980,-33.19182477,0.00018239,2]
[343031689,1732297837953,-266.80817523,0.00018239,2]
[343031691,1732297837963,-659.19461477,0.00018243,2]
[343031803,1732297842938,-464.33664023,0.00018243,2]
[343031805,1732297842948,-171.1329862,0.00018355,2]
[343031808,1732297842958,-903.02761464,0.00018928,2]
[343032099,1732297845802,-5000.0,0.00018739,2]
[343032101,1732297845812,-220.50364036,0.00018928,2]
[343032103,1732297845822,-14000.8652069,0.00019178,2]
[343032105,1732297845831,-163.595031,0.00019178,2]
[343032107,1732297845841,-1123.531255,0.00019613,2]
[343032109,1732297845851,-1239.53558151,0.00019682,2]
[343032111,1732297845860,-346.91642415,0.000197,2]
[343032113,1732297845870,-33453.40783449,0.000197,2]
[343032116,1732297845882,-13970.45585724,0.000197,2]
[343032119,1732297845905,-41088.55801951,0.000197,2]
[343032121,1732297845917,-161487.57828876,0.000197,2]
[343032123,1732297845926,-531.34926898,0.00019782,2]
[343032124,1732297845935,-163.75850951,0.00019882,2]
[343032125,1732297845944,-193.0,0.00019895,2]
[343032126,1732297845954,-530.0,0.00019982,2]
[343032127,1732297845963,-2381.0,0.00019982,2]
[343032128,1732297845972,-1115.683,0.00019982,2]
[343032129,1732297845982,-150.108,0.00019982,2]
[343032130,1732297845991,-160.0,0.0002,2]
[343032131,1732297846004,-596.0,0.0002,2]
[343032132,1732297846013,-179.0,0.00020063,2]
[343032133,1732297846022,-400.0,0.00020447,2]
[343032134,1732297846031,-162.31,0.000209,2]
[343032135,1732297846040,-1239.53558147,0.00020968,2]
[343032136,1732297846050,-2539.81,0.00021,2]
[343032137,1732297846059,-286.0,0.00022,2]
[343032138,1732297846068,-286.0,0.00022192,2]
[343032139,1732297846078,-1239.53558147,0.00022255,2]
[343032140,1732297846087,-304.315,0.00022918,2]
[343032141,1732297846096,-2381.0,0.00022982,2]
[343032142,1732297846107,-312.69440796,0.00023,2]
[343032143,1732297846117,-286.0,0.00023014,2]
[343032144,1732297846127,-1239.53558147,0.00023541,2]
[343032145,1732297846136,-163.75850949,0.00023891,2]
[343032146,1732297846147,-292.0,0.00024164,2]
[343032147,1732297846156,-200.0,0.00024658,15]
[343032148,1732297846166,-380.0,0.00024658,2]
[343032149,1732297846175,-1239.53558147,0.00024827,2]
[343032150,1732297846186,-500.0,0.00024973,2]
[343032151,1732297846195,-166.98067535,0.00024999,2]
[343032152,1732297846204,-167.71608746,0.00024999,2]
[343032153,1732297846214,-181.69541573,0.00024999,2]
[343032154,1732297846223,-300.0,0.00025,2]
[343032155,1732297846232,-300.0,0.00025,2]
[343032156,1732297846241,-273.4,0.00025,2]
[343032157,1732297846254,-300.0,0.00025,2]
[343032160,1732297846263,-300.0,0.00025,2]
[343032161,1732297846439,-273.4,0.00025,2]
[343032162,1732297846449,-300.0,0.00025,2]
[343032163,1732297846459,-300.0,0.00025,2]
[343032164,1732297846469,-273.399999,0.00025,2]
[343032165,1732297846479,-500.0,0.00025,17]
[343032166,1732297846488,-220052.4377057,0.00025,2]
[343033742,1732298267423,281.3353808,0.00029041,120]
[343033747,1732298519959,400.0,0.00013973,2]
[343033749,1732298753324,165.0,0.000284,120]
[343033751,1732298770750,206.0,0.000284,120]
[343033793,1732299032207,-877.55305,0.00018454,2]
[343033795,1732299032219,-181.59178016,0.00018454,2]
[343033797,1732299032229,-1001.92144984,0.00018759,2]
[343034165,1732299038089,-1059.14483016,0.00018759,2]
[343034166,1732299038099,-166.973181,0.00019178,2]
[343034168,1732299038108,-231.2776161,0.000196,2]
[343034169,1732299038118,-1506.21437274,0.000196,2]
[343034504,1732299449787,400.0,0.00013973,2]
[343034519,1732300115062,891.8867,0.0002961,120]
[343034522,1732300124785,141664.5849298,0.000109,2]
[343035102,1732300240022,-3864.00447494,0.00018675,2]
[343035630,1732300246227,-838.05420093,0.00018488,2]
[343035632,1732300246237,-5079.28558194,0.00018675,2]
[343035634,1732300246247,-3079.98951713,0.00019157,2]
[343036150,1732300319404,400.0,0.00013973,2]
[343036168,1732300941984,-1000.5,0.00026,31]
[343036169,1732300942008,-1009.4,0.00026,31]
[343036170,1732300942032,-135465.75801694,0.00026,30]
[343036171,1732300942058,-200.73506089,0.00027,60]
[343036172,1732300942081,-400.0,0.00027397,60]
[343036173,1732300942114,-23847.21384434,0.00028,30]
[343036174,1732301086502,400.0,0.00013973,2]
[343036693,1732301445655,-5000.0,0.00017855,2]
[343036695,1732301445665,-357.563461,0.00018246,2]
[343036697,1732301445676,-248.0535565,0.00018309,2]
[343036699,1732301445686,-255.8920437,0.00018378,2]
[343036701,1732301445696,-300.0,0.0001886,2]
[343036703,1732301445705,-5666.37851879,0.00018861,2]
[343036706,1732301445718,-729.15,0.00018861,2]
[343036708,1732301445730,-252.58638095,0.00018861,2]
[343036745,1732301446503,-3856.69080219,0.00018861,2]
[343036746,1732301446513,-357.563461,0.0001893,2]
[343036747,1732301446522,-163.595031,0.00019178,2]
[343036748,1732301446532,-166.973181,0.00019178,2]
[343036749,1732301446541,-163.75850949,0.000193,2]
[343036750,1732301446551,-377.4813714,0.000193,2]
[343036751,1732301446564,-417.13,0.0001939,3]
[343036752,1732301446582,-208.57,0.0001939,3]
[343036753,1732301446596,-625.73,0.0001939,3]
[343036754,1732301446606,-2060.07112289,0.00019398,2]
[343036755,1732301446615,-154.18507739,0.000194,2]
[343036756,1732301446625,-4134.91673864,0.000194,2]
[343036762,1732301777052,400.0,0.00013973,2]
[343036764,1732302370340,152.75098743,0.00015986,2]
[343036765,1732302378870,152.75098743,0.00015986,2]
[343036767,1732302452763,400.0,0.00013973,2]
[343036779,1732302579828,200.43223888,0.00015888,2]
[343037081,1732302638866,-178.78173,0.00017884,2]
[343037083,1732302638876,-200.43223888,0.00017965,3]
[343037085,1732302638886,-178.78173,0.00018065,2]
[343037087,1732302638896,-208.3685558,0.00018278,2]
[343037089,1732302638906,-809.93063356,0.00018793,2]
[343037099,1732302638995,-6593.36466476,0.00018793,2]
[343037101,1732302639005,-7403.29529833,0.00019023,2]
[343037103,1732302639015,-163.595031,0.00019178,2]
[343037105,1732302639024,-1000.0,0.000192,2]
[343037107,1732302639033,-163.75850951,0.000192,2]
[343037109,1732302639043,-208.56,0.0001929,3]
[343037111,1732302639052,-625.72,0.0001929,3]
[343037113,1732302639062,-500.0,0.00019299,2]
[343037115,1732302639071,-500.0,0.00019299,2]
[343037117,1732302639080,-500.0,0.00019299,2]
[343037118,1732302639090,-500.0,0.00019299,2]
[343037119,1732302639100,-500.0,0.00019299,2]
[343037120,1732302639109,-456.23236091,0.00019299,2]
[343037121,1732302639119,-500.0,0.00019299,2]
[343037122,1732302639128,-500.0,0.00019299,2]
[343037123,1732302639136,-500.0,0.00019299,2]
[343037124,1732302639145,-500.0,0.00019299,2]
[343037125,1732302639155,-500.0,0.00019299,2]
[343037126,1732302639164,-500.0,0.00019299,2]
[343037127,1732302639172,-428.83264425,0.00019299,2]
[343037128,1732302639184,-500.0,0.00019299,2]
[343037129,1732302639196,-335.30612357,0.00019299,2]
[343037130,1732302639206,-299.50964855,0.00019299,2]
[343037131,1732302639215,-427.55633765,0.00019299,2]
[343037132,1732302639225,-188.43267361,0.00019299,2]
[343037133,1732302639236,-201.90902993,0.000193,2]
[343037134,1732302639246,-5271.43829417,0.000193,2]
[343037136,1732302639257,-107197.95486955,0.000193,2]
[343037139,1732302639270,-7558.4259873,0.000193,2]
[343037144,1732302639398,-1017.321182,0.000193,2]
[343037145,1732302639418,-561.46296804,0.000193,2]
[343037146,1732302639507,-128393.39669894,0.000193,2]
[343037147,1732302639517,-8093.38469587,0.000193,2]
[343037148,1732302639526,-243.452,0.000193,2]
[343037149,1732302639534,-3124.25973223,0.000194,2]
[343037150,1732302639544,-151.0,0.000194,2]
[343037151,1732302639553,-151.0,0.000194,2]
[343037152,1732302639563,-397.256155,0.000194,2]
[343037153,1732302639572,-397.256155,0.000194,2]
[343037154,1732302639581,-178.78173,0.00019435,2]
[343037155,1732302639591,-163.75850951,0.000197,2]
[343037156,1732302639601,-152.0,0.00019782,2]
[343037157,1732302639611,-2208.94741778,0.0002,2]
[343037158,1732302639621,-160.0,0.0002,2]
[343037159,1732302639630,-10831.80625908,0.0002,2]
[343037160,1732302639640,-151.0,0.0002,2]
[343037161,1732302639650,-151.0,0.0002,2]
[343037162,1732302639659,-300.0,0.0002,8]
[343037163,1732302639668,-151.0,0.0002,2]
[343037164,1732302639679,-151.0,0.0002,2]
[343037165,1732302639699,-151.0,0.0002,2]
[343037166,1732302639716,-151.0,0.0002,2]
[343037167,1732302639727,-151.0,0.0002,2]
[343037168,1732302639736,-222.594912,0.0002,2]
[343037169,1732302639746,-397.256155,0.0002,2]
[343037170,1732302639757,-397.256155,0.0002,2]
[343037171,1732302639767,-397.256155,0.0002,2]
[343037172,1732302639777,-397.256155,0.0002,2]
[343037173,1732302639787,-89741.25974499,0.0002,2]
[343037203,1732302644539,-26913.23749082,0.0002,2]
[343037205,1732302644551,-724.02,0.0002,2]
[343037213,1732302644614,-2541.9000002,0.0002,2]
[343037447,1732302646809,-992.96,0.0002,2]
[343038319,1732303188858,400.0,0.00013973,2]
[343038389,1732303832695,-414.11844292,0.00018443,2]
[343038391,1732303832705,-102.669822,0.00019178,2]
[343038395,1732303832738,-64.303359,0.00019178,2]
[343038397,1732303832751,-181.25,0.0001919,3]
[343038399,1732303832760,-165.99415545,0.00019199,2]
[343038402,1732303832772,-33.95136106,0.00019199,2]
[343038404,1732303832781,-214.17292641,0.00019199,2]
[343038406,1732303832791,-201.90902993,0.000192,2]
[343038408,1732303832800,-69992.10254748,0.000192,2]
[343038410,1732303832812,-2694.79985486,0.000192,2]
[343038499,1732303844145,-456.63753203,0.00019008,2]
[343038500,1732303844158,-727.910001,0.00019008,2]
[343038501,1732303844169,-929.49976344,0.00019008,2]
[343038502,1732303844186,-7824.31647053,0.00019008,2]
[343038503,1732303844196,-543.78,0.0001919,3]
[343038504,1732303844206,-176352.21301061,0.000192,2]
[343038542,1732303846721,-500.0,0.00019199,2]
[343038543,1732303846731,-500.0,0.00019199,2]
[343038544,1732303846741,-500.0,0.00019199,2]
[343038545,1732303846750,-289.14808994,0.00019199,2]
[343038546,1732303846762,-500.0,0.00019199,2]
[343038547,1732303846773,-500.0,0.00019199,2]
[343038548,1732303846783,-500.0,0.00019199,2]
[343038549,1732303846792,-234.80070388,0.00019199,2]
[343038550,1732303846802,-500.0,0.00019199,2]
[343038551,1732303846812,-500.0,0.00019199,2]
[343038552,1732303846823,-500.0,0.00019199,2]
[343038553,1732303846832,-500.0,0.00019199,2]
[343038554,1732303846842,-456.23236091,0.00019199,2]
[343038555,1732303846851,-500.0,0.00019199,2]
[343038556,1732303846861,-428.83264425,0.00019199,2]
[343038557,1732303846870,-500.0,0.00019199,2]
[343038558,1732303846880,-960.88458705,0.000192,2]
[343038559,1732303846889,-163.75850951,0.000197,2]
[343038560,1732303846899,-500.0,0.00019973,2]
[343038561,1732303846908,-500.0,0.00019973,2]
[343038562,1732303846918,-903.26161544,0.0001999,2]
[343038563,1732303846927,-160.0,0.0002,2]
[343038564,1732303846937,-2017.88469502,0.0002,2]
[343038565,1732303918132,400.0,0.00013973,2]
[343038998,1732304578015,400.0,0.00013973,2]
[343039190,1732305031841,-163.595031,0.00019178,2]
[343039192,1732305031851,-106.744029,0.000198,2]
[343039198,1732305031933,-95.68105237,0.000198,2]
[343039199,1732305031943,-65262.01968535,0.000198,2]
[343039200,1732305031955,-3894.12034279,0.000198,2]
[343039201,1732305031965,-464.82584306,0.000198,2]